Workbook

Sheet Connection Charges
B2: Water and Wastewater Connection Fee Calculator Tool
B4: Where is the property?
D5: City | I5: =IF(H5="Single Family","*** IIA Fees Not Applicable for Single Family Connections***","") -> 
D6: County
D7: County but no-surcharge*
C8: *Federal, Florida, other government entities (e.g. County, GRU) and places of religious assembly are exempt from the surcharge tax
B10: What type of connection?
D11: Single Family | E11: =IF(C11="X","Existing well?","") -> 
D12: Multi-family | E12: =IF(C12="X","Number of bedrooms","") -> 
D13: Nonresidential | E13: =IF(C13="X","Facility Type","") ->  | G13: =IF(C13="X","Building Square Footage","") -> 
G14: =IF(H13="","","Estimated annual average daily flow (gpd)") ->  | H14: =IFERROR(VLOOKUP(F13,$C$109:$H$143,6,FALSE)*H13,"") -> 
B16: What type of service?
D17: Water | E17: =IF(C17="X","Meter Size","") ->  | G17: =IF(C17="X","Meter Install Type","") ->  | I17: =IF(F17="","",IF(F17="1 - in","",IF(F17="3/4 - in","","(GRU installs meters greater than 1-in: Meter, box & yoke)"))) -> 
E18: =IF(C17="X","Number of Meters","") ->  | G18: =IF(F17="","",IF(F17="1 - in","",IF(F17="3/4 - in","","*** Send meter requests greater than 1-in to W/WW Engineering for review ***"))) -> 
D19: Wastewater
D20: Irrigation | E20: =IF(C20="X","Meter Size","") ->  | G20: =IF(C20="X","Meter Install Type","") ->  | I20: =IF(F20="","",IF(F20="1 - in","",IF(F20="3/4 - in","","(GRU installs meters greater than 1-in: Meter, box & yoke)"))) -> 
E21: =IF(C20="X","Number of Meters","") -> 
D22: Hydrant meter
D23: Temporary water
D24: Reclaimed water | M24: bvvv
B26: Developer fees
C27: Plan review fee
C28: Inspection fee | E28: Linear feet water | G28: Linear feet wastewater
C29: Tap size ( ≥ 1")
B31: Connection Fees
B32: Water capacity connection: | E32: ="T&D $"&ROUND(IF(C17="X",IF($C$11="X",$D$53,IF($C$12="X",$F$12*70*1.547,IF($C$13="X",IF($H$14<=280,$D$53,$H$14*1.547),0))),0),2)&" +" -> T&D $0 + | F32: ="WTP $"&ROUND(IF(C17="X",IF($C$11="X",$E$53,IF($C$12="X",$F$12*70*2.306,IF($C$13="X",IF($H$14<=280,$E$53,$H$14*2.306),0))),0),2)&" =" -> WTP $0 = | G32: =IF(C17="X",IF($C$11="X",$F$53,IF($C$12="X",$F$12*70*F56,IF($C$13="X",IF($H$14<=280,$F$53,$H$14*F56),0))),0) -> 0
B33: Water meter equipment and install | G33: =(IF(H17="Meter only",VLOOKUP(F17,C60:D61,2,FALSE),IF(H17="Meter, box, & yoke",VLOOKUP(F17,C60:E70,3,FALSE),0))+IF(C17="X",IF(F11="X",F60,0),0))*F18 -> 0 | H33: =IF(F11="X",IF(C17="X"," GRU installed backflow preventer fee included: $200",""),"") -> 
B34: Wastewater capacity connection: | E34: ="Collection System $"&ROUND(IF(C19="X",IF($C$11="X",$D$82,IF($C$12="X",$F$12*70*2.567,IF($C$13="X",IF($H$14<=280,$D$82,$H$14*2.567),0))),0),2)&" +" -> Collection System $0 + | F34: ="WWTP $"&ROUND(IF(C19="X",IF($C$11="X",$E$82,IF($C$12="X",$F$12*70*11.478,IF($C$13="X",IF($H$14<=280,$E$82,$H$14*11.478),0))),0),2)&" =" -> WWTP $0 = | G34: =IF(C19="X",IF($C$11="X",$F$82,IF($C$12="X",$F$12*70*F85,IF($C$13="X",IF($H$14<=280,$F$82,$H$14*F85),0))),0) -> 0
B35: Irrigation meter equipment and install | G35: =(IF(H20="Meter only",VLOOKUP(F20,C60:D61,2,FALSE),IF(H20="Meter, box, & yoke",VLOOKUP(F20,C60:E70,3,FALSE),0)))*F21 -> 0
B36: Hydrant meter | G36: =IF(C22="X",E75+E76,0) -> 0
B37: Reclaimed water | G37: 0
B38: Subtotal | G38: =SUM(G32:G37) -> 0
B39: Developer Fees
B40: Plan review fee | G40: =IF(D27="water",D90,IF(D27="wastewater",D91,IF(D27="water, wastewater",D90+D91,0))) -> 0
B41: Inspection fee | G41: =F28*D94+H28*D95 -> 0
B42: Tapping fee | G42: =IFERROR(VLOOKUP(D29,$C$99:$D$104,2,FALSE),0) -> 0
B44: Surcharge (25-percent) | G44: =IF(C6="x",(G38+G43)*0.25,0) -> 0
B45: Total | G45: =G44+G43+G38 -> 0
A47: FEE DETAILS
B49: GRU WATER/WASTEWATER FEES FY 2026 (Effective October 1, 2025)
B50: WATER
C51: CAPACITY CHARGE
C52: Consumption | D52: Transmission and Distribution Connection Charge | E52: Water Treatment Plant Connection Charge | F52: Total Water Connection Charge
C53: Single Family & Small Nonresidential ≤ 280 gpd | D53: 578 | E53: 870 | F53: =ROUND(D53,0)+ROUND(E53,0) -> 1448
C54: Single family, heated & cooled area > 850 ft2 but < 1,400 ft2 | D54: =D53*0.65 -> 375.7 | E54: =E53*0.65 -> 565.5 | F54: =ROUND(D54,0)+ROUND(E54,0) -> 942
C55: Single family, heated & cooled area < 850 ft2 | D55: =D53*100/280 -> 206.4285714 | E55: =E53*100/280 -> 310.7142857 | F55: =ROUND(D55,0)+ROUND(E55,0) -> 517
C56: Nonresidential ˃ 280 gpd ($/gpd) | D56: 2.06 | E56: 3.11 | F56: =D56+E56 -> 5.17
C58: EQUIPMENT CHARGE
C59: Meter size (in) | D59: Meter Charge - Developer Install Box & Yoke* | E59: Meter Charge - GRU Install Box & Yoke | F59: GRU Installed Backflow Preventer
C60: 3/4 - in | D60: 530 | E60: 872 | F60: 408
C61: 1 - in | D61: 658 | E61: 1140
C62: 1 1/2" | D62: 2022 | E62: 2883
C63: 2" | D63: 2302 | E63: 3080
C64: 3" | E64: 17606
C65: 4" | E65: 19569
C66: 4" UL Rated Fire Line Mtr | E66: 24199
C67: 6" | E67: 25792
C68: 6" UL Rated Fire Line Mtr | E68: 30028
C69: 8" | E69: 30397
C70: 4" UL Rated Fire Line Mtr | E70: 36221
C71: *Existing meter box or developer installed meter box.
C73: HYDRANT METER SERVICE
C74: Description | E74: Fee
C75: Nonrefundable install & removal | E75: 127
C76: Hydrant Meter Deposit | E76: 1548
B79: WASTEWATER
C81: Consumption | D81: Wastewater Collection System Connection Charge | E81: Wastewater Treatment Plant Connection Charge | F81: Total Wastewater Connection Charge
C82: Single Family & Small Nonresidential ≤ 280 gpd) | D82: 961 | E82: 3293 | F82: =ROUND(D82,0)+ROUND(E82,0) -> 4254
C83: Single family, heated & cooled area > 850 ft2 but < 1,400 ft2 | D83: =D82*0.65 -> 624.65 | E83: =E82*0.65 -> 2140.45 | F83: =ROUND(D83,0)+ROUND(E83,0) -> 2765
C84: Single family, heated & cooled area < 850 ft2 | D84: =D82*100/280 -> 343.2142857 | E84: =E82*100/280 -> 1176.071429 | F84: =ROUND(D84,0)+ROUND(E84,0) -> 1519
C85: Nonresidential ˃ 280 gpd ($/gpd) | D85: 3.43 | E85: 11.76 | F85: =E85+D85 -> 15.19
B87: DEVELOPER FEES
C89: PLAN REVIEW FEES | F89: I-DISTRICT INFRASTRUCTURE IMPROVEMENT AREA FEES
C90: Water | D90: 980 | H90: Water | I90: WW | J90: Unit
C91: Wastewater | D91: 1760 | F91: Commercial & Institutional | H91: 1.3 | I91: 1.32 | J91: /ft2 gross building area
F92: Hotel &/or Motel | H92: 518.64 | I92: 527.27 | J92: per room
C93: INSPECTION FEES | F93: Laboratory (wet) | H93: 1.56 | I93: 1.59 | J93: /ft2 gross building area
C94: Water | D94: 3.17 | E94: per linear foot | F94: Multi-Family Residential | H94: 363.05 | I94: 369.09 | J94: per bedroom
C95: Wastewater | D95: 7.81 | E95: per linear foot | F95: Office & Laboratory (dry) | H95: 0.77 | I95: 0.79 | J95: /ft2 gross building area
F96: Parking Garage | H96: 0.77 | I96: NA | J96: /ft2 gross building area
C97: TAPPING FEES
C98: Tap size (inches) | D98: Charge
C99: 1" | D99: 1345
C100: 2" | D100: 2038
C101: 4" | D101: 4850
C102: 6" | D102: 5024
C103: 8" | D103: 6246
C104: 12" | D104: 8580
B106: NON-RESIDENTIAL FLOW ESTIMATES
C108: Category | H108: Coefficient | I108: * Bldg SQFT = GPD
C109: Auto: sales, repair, rental, tire, storage, body shops | H109: 0.03076608381
C110: Car wash | H110: 1.061533234
C111: Churches | H111: 0.03326168153
C112: Department Store, Box Store | H112: 0.01091127238
C113: Drive-in restaurants | H113: 0.3691660631
C114: Dry cleaning, laundry mats | H114: 0.6542702743
C115: Financial Institutions | H115: 0.0184408519
C116: Fire Station | H116: 0.09899995328
C117: Florists, greenhouses | H117: 0.04161496323
C118: Golf courses, driving ranges | H118: 0.18530352
C119: Gym, Workout Facility | H119: 0.04171744071
C120: Hotel | H120: 0.1349274454
C121: Industrial, manufacturing | H121: 0.02060249307
C122: Libraries and museums | H122: 0.0215345
C123: Lumberyards, sawmills, planning mills | H123: 0.01033979402
C124: Medical | H124: 0.06020621935
C125: Mixed Use: Store & Office, Store & Residential | H125: 0.03436690484
C126: Mortuaries, cemeteries, crematoriums | H126: 0.07307294304
C127: Nightclubs, cocktail lounges, bars | H127: 0.158237274
C128: Office building | H128: 0.03547847791
C129: Open storage, building supplies, junk yards, auto wrecking, fuel storage | H129: 0.05539132922
C130: Pharmacy | H130: 0.01757988482
C131: Private schools, colleges and daycare facilities | H131: 0.07494655195
C132: Repair service shops (non-automotive) | H132: 0.02545484858
C133: Restaurants (other than drive-in) | H133: 0.3343089267
C134: Retirement homes, orphanages, group homes | H134: 0.1071681459
C135: Service stations | H135: 0.07237145582
C136: Storage Units | H136: 0.001793827591
C137: Store, community shopping center (other than supermarkets and department stores) | H137: 0.0349025135
C138: Supermarkets | H138: 0.05730559508
C139: Theaters, Bowling alleys, skating rinks, pool halls, enclosed arenas, auditoriums | H139: 0.0464873582
C140: Union halls, lodges, clubs, club houses | H140: 0.04476472702
C141: Utility - other than GRU | H141: 0.01405874487
C142: Warehouse, distribution centers, truck terminals | H142: 0.02118644068
C143: Wholesale & manufacturing outlets, produce houses | H143: 0.01521170106

Sheet Existing Meter Flow Credit
A2: Flow Credit for Existing Meter(s)
C5: Enter Quantity of Meters for Each Meter Size
B9: Meter Size | C9: Number of Meters | D9: Est. Flow | E9: Total Flow Credit
B10: in | D10: ADF GPD | E10: ADF GPD
B11: 5/8-in | D11: 278 | E11: =C11*D11 -> 0
B12: 3/4-in | D12: 809 | E12: =C12*D12 -> 0
B13: 1-in | D13: 927 | E13: =C13*D13 -> 0
B14: 1 1/2-in | D14: 2103 | E14: =C14*D14 -> 0
B15: 2-in | D15: 4253 | E15: =C15*D15 -> 0
D16: Total Flow Credit: | F16: gpd

Sheet NonRes_ConnCharges_Given_ADF
B2: Water and Wastewater Connection Fee Calculator Tool
B4: Where is the property?
D5: City | I5: =IF(H5="Single Family","*** IIA Fees Not Applicable for Single Family Connections***","") -> 
C6: X | D6: County
D7: County but no-surcharge*
C8: *Federal, Florida, other government entities (e.g. County, GRU) and places of religious assembly are exempt from the surcharge tax
B10: What type of connection?
D11: Single Family | E11: =IF(C11="X","Existing well?","") -> 
D12: Multi-family | E12: =IF(C12="X","Number of bedrooms","") -> 
C13: X | D13: Nonresidential | E13: =IF(C13="X","Facility Type","") -> Facility Type | G13: =IF(C13="X","Building Square Footage","") -> Building Square Footage
G14: Enter Given ADF ----> | H14: 5000 | I14: gpd
B16: What type of service?
C17: X | D17: Water | E17: =IF(C17="X","Meter Size","") -> Meter Size | F17: 3/4 - in | G17: =IF(C17="X","Meter Install Type","") -> Meter Install Type | H17: Meter only | I17: =IF(F17="","",IF(F17="1 - in","",IF(F17="3/4 - in","","(GRU installs meters greater than 1-in: Meter, box & yoke)"))) -> 
E18: =IF(C17="X","Number of Meters","") -> Number of Meters | F18: 1 | G18: =IF(F17="","",IF(F17="1 - in","",IF(F17="3/4 - in","","*** Send meter requests greater than 1-in to W/WW Engineering for review ***"))) -> 
C19: X | D19: Wastewater
D20: Irrigation | E20: =IF(C20="X","Meter Size","") ->  | G20: =IF(C20="X","Meter Install Type","") ->  | I20: =IF(F20="","",IF(F20="1 - in","",IF(F20="3/4 - in","","(GRU installs meters greater than 1-in: Meter, box & yoke)"))) -> 
E21: =IF(C20="X","Number of Meters","") -> 
D22: Hydrant meter
D23: Temporary water
D24: Reclaimed water | M24: bvvv
B26: Developer fees
C27: Plan review fee
C28: Inspection fee | E28: Linear feet water | G28: Linear feet wastewater
C29: Tap size ( ≥ 1 ½")
B31: Connection Fees
B32: Water capacity connection: | E32: ="T&D $"&ROUND(IF(C17="X",IF($C$11="X",$D$54,IF($C$12="X",$F$12*70*$D$55,IF($C$13="X",IF($H$14<=280,$D$54,$H$14*$D$55),0))),0),2)&" +" -> T&D $10300 + | F32: ="WTP $"&ROUND(IF(C17="X",IF($C$11="X",$E$54,IF($C$12="X",$F$12*70*$E$55,IF($C$13="X",IF($H$14<=280,$E$54,$H$14*$E$55),0))),0),2)&" =" -> WTP $15550 = | G32: =IF(C17="X",IF($C$11="X",$F$54,IF($C$12="X",$F$12*70*$F$55,IF($C$13="X",IF($H$14<=280,$F$54,$H$14*$F$55),0))),0) -> 25850
B33: Water meter equipment and install | G33: =(IF(H17="Meter only",VLOOKUP(F17,C59:D60,2,FALSE),IF(H17="Meter, box, & yoke",VLOOKUP(F17,C59:E66,3,FALSE),0))+IF(C17="X",IF(F11="X",F59,0),0))*F18 -> 530 | H33: =IF(F11="X",IF(C17="X"," GRU installed backflow preventer fee included: $200",""),"") -> 
B34: Wastewater capacity connection: | E34: ="Collection System $"&ROUND(IF(C19="X",IF($C$11="X",$D$79,IF($C$12="X",$F$12*70*$D$80,IF($C$13="X",IF($H$14<=280,$D$79,$H$14*$D$80),0))),0),2)&" +" -> Collection System $17150 + | F34: ="WWTP $"&ROUND(IF(C19="X",IF($C$11="X",$E$79,IF($C$12="X",$F$12*70*$E$80,IF($C$13="X",IF($H$14<=280,$E$79,$H$14*$E$80),0))),0),2)&" =" -> WWTP $58800 = | G34: =IF(C19="X",IF($C$11="X",$F$79,IF($C$12="X",$F$12*70*$F$80,IF($C$13="X",IF($H$14<=280,$F$79,$H$14*$F$80),0))),0) -> 75950
B35: Irrigation meter equipment and install | G35: =(IF(H20="Meter only",VLOOKUP(F20,C59:D60,2,FALSE),IF(H20="Meter, box, & yoke",VLOOKUP(F20,C59:E66,3,FALSE),0)))*F21 -> 0
B36: Hydrant meter | G36: =IF(C22="X",E71+E72,0) -> 0 | H36: =IF(G36>0,"Nonrefundable installation & removalal fee $95; Deposit $1,160","") -> 
B37: Temporary water meter | G37: =IF(C23="X",E71+E73,0) -> 0 | H37: =IF(G37>0,"Nonrefundable installation & removalal fee $95; Deposit $1,130","") -> 
B38: Reclaimed water | G38: 0
B39: Subtotal | G39: =SUM(G32:G38) -> 102330
B40: Developer Fees
B41: Plan review fee
B42: Inspection fee | G42: =F28*D89+H28*D90 -> 0
B43: Tapping fee
B45: Surcharge (25-percent) | G45: =IF(C6="x",(G39+G44)*0.25,0) -> 25582.5
B46: Total | G46: =G45+G44+G39 -> 127912.5
A48: FEE DETAILS
B50: WATER
C52: CAPACITY CHARGE
C53: Consumption | D53: Transmission and Distribution Connection Charge | E53: Water Treatment Plant Connection Charge | F53: Total Water Connection Charge
C54: Single Family & Small Nonresidential ≤ 280 gpd | D54: ='Connection Charges'!D53 -> 578 | E54: ='Connection Charges'!E53 -> 870 | F54: =E54+D54 -> 1448
C55: Nonresidential ˃ 280 gpd ($/gpd) | D55: ='Connection Charges'!D56 -> 2.06 | E55: ='Connection Charges'!E56 -> 3.11 | F55: =D55+E55 -> 5.17
C57: EQUIPMENT CHARGE
C58: Meter size (in) | D58: Meter Charge - Developer Install Box & Yoke* | E58: Meter Charge - GRU Install Box & Yoke | F58: GRU Installed Backflow Preventer
C59: 3/4 - in | D59: ='Connection Charges'!D60 -> 530 | E59: ='Connection Charges'!E60 -> 872 | F59: ='Connection Charges'!F60 -> 408
C60: 1 - in | D60: ='Connection Charges'!D61 -> 658 | E60: ='Connection Charges'!E61 -> 1140
C61: 1 1/2" | E61: ='Connection Charges'!E62 -> 2883
C62: 2" | E62: ='Connection Charges'!E63 -> 3080
C63: 3" | E63: ='Connection Charges'!E64 -> 17606
C64: 4" | E64: ='Connection Charges'!E65 -> 19569
C65: 6" | E65: ='Connection Charges'!E67 -> 25792
C66: 8" | E66: ='Connection Charges'!E69 -> 30397
C67: *Existing meter box or developer installed meter box.
C69: TEMPORARY SERVICE
C70: Description | E70: Fee
C71: Nonrefundable install & removal | E71: ='Connection Charges'!E75 -> 127
C72: Hydrant Meter Deposit | E72: ='Connection Charges'!E76 -> 1548
C73: Temporary Meter Deposit | E73: =E72 -> 1548
B76: WASTEWATER
C78: Consumption | D78: Wastewater Collection System Connection Charge | E78: Wastewater Treatment Plant Connection Charge | F78: Total Wastewater Connection Charge
C79: Single Family & Small Nonresidential ≤ 280 gallons per day (gpd) | D79: ='Connection Charges'!D82 -> 961 | E79: ='Connection Charges'!E82 -> 3293 | F79: =E79+D79 -> 4254
C80: Nonresidential ˃ 280 gpd ($/gpd) | D80: ='Connection Charges'!D85 -> 3.43 | E80: ='Connection Charges'!E85 -> 11.76 | F80: =E80+D80 -> 15.19
B82: DEVELOPER FEES
C84: PLAN REVIEW FEES
C85: Water | D85: ='Connection Charges'!D90 -> 980
C86: Wastewater | D86: ='Connection Charges'!D91 -> 1760
C88: INSPECTION FEES
C89: Water | D89: ='Connection Charges'!D94 -> 3.17 | E89: per linear foot
C90: Wastewater | D90: ='Connection Charges'!D95 -> 7.81 | E90: per linear foot
C92: TAPPING FEES
C93: Tap size (inches) | D93: Charge
C94: 1 1/2" | D94: ='Connection Charges'!D99 -> 1345
C95: 2" | D95: ='Connection Charges'!D100 -> 2038
C96: 4" | D96: ='Connection Charges'!D101 -> 4850
C97: 6" | D97: ='Connection Charges'!D102 -> 5024
C98: 8" | D98: ='Connection Charges'!D103 -> 6246
C99: 12" | D99: ='Connection Charges'!D104 -> 8580
B101: NON-RESIDENTIAL FLOW ESTIMATES
C103: Category | H103: Coefficient | I103: * Bldg SQFT = GPD
C104: Auto: sales, repair, rental, tire, storage, body shops | H104: 0.03076608381
C105: Car wash | H105: 1.061533234
C106: Churches | H106: 0.03326168153
C107: Department Store, Box Store | H107: 0.01091127238
C108: Drive-in restaurants | H108: 0.3691660631
C109: Dry cleaning, laundry mats | H109: 0.6542702743
C110: Financial Institutions | H110: 0.0184408519
C111: Florists, greenhouses | H111: 0.04161496323
C112: Golf courses, driving ranges | H112: 0.18530352
C113: Gym, Workout Facility | H113: 0.04171744071
C114: Hotel | H114: 0.1349274454
C115: Industrial, manufacturing | H115: 0.02060249307
C116: Lumberyards, sawmills, planning mills | H116: 0.01033979402
C117: Medical | H117: 0.06020621935
C118: Mixed Use: Store & Office, Store & Residential | H118: 0.03436690484
C119: Mortuaries, cemeteries, crematoriums | H119: 0.07307294304
C120: Nightclubs, cocktail lounges, bars | H120: 0.158237274
C121: Office building | H121: 0.03547847791
C122: Open storage, building supplies, junk yards, auto wrecking, fuel storage | H122: 0.05539132922
C123: Pharmacy | H123: 0.01757988482
C124: Private schools, colleges and daycare facilities | H124: 0.07494655195
C125: Repair service shops (non-automotive) | H125: 0.02545484858
C126: Restaurants (other than drive-in) | H126: 0.3343089267
C127: Retirement homes, orphanages, group homes | H127: 0.1071681459
C128: Service stations | H128: 0.07237145582
C129: Storage Units | H129: 0.001793827591
C130: Store, community shopping center (other than supermarkets and department stores) | H130: 0.0349025135
C131: Supermarkets | H131: 0.05730559508
C132: Theaters, Bowling alleys, skating rinks, pool halls, enclosed arenas, auditoriums | H132: 0.0464873582
C133: Union halls, lodges, clubs, club houses | H133: 0.04476472702
C134: Utility - other than GRU | H134: 0.01405874487
C135: Warehouse, distribution centers, truck terminals | H135: 0.02118644068
C136: Wholesale & manufacturing outlets, produce houses | H136: 0.01521170106

Sheet DropDownDef
A2: Y | B2: 3/4 - in | C2: City | D2: Single Family | E2: Water | F2: X | G2: Meter only | H2: Auto: sales, repair, rental, tire, storage, body shops | I2: 1" | J2: Water, Wastewater
A3: N | B3: 1 - in | C3: County | D3: Multi Family | E3: Water, Wastewater | G3: Meter, box, & yoke | H3: Car wash | I3: 2" | J3: Water
B4: 1 1/2" | D4: Non-residential | E4: Water, Irrigation, Wastewater | H4: Churches | I4: 4" | J4: Wastewater
B5: 2" | E5: Wastewater | H5: Department Store, Box Store | I5: 6"
B6: 3" | E6: Irrigation | H6: Drive-in restaurants | I6: 8"
B7: 4" | E7: Irrigation, Wastewater | H7: Dry cleaning, laundry mats | I7: 12"
B8: 6" | E8: Hydrant meter | H8: Financial Institutions
B9: 8" | E9: Temporary meter | H9: Florists, greenhouses
H10: Golf courses, driving ranges
H11: Gym, Workout Facility
H12: Hotel
H13: Industrial, manufacturing
H14: Libraries and Museums
H15: Lumberyards, sawmills, planning mills
H16: Medical
H17: Mixed Use: Store & Office, Store & Residential
H18: Mortuaries, cemeteries, crematoriums
H19: Nightclubs, cocktail lounges, bars
H20: Office building
H21: Open storage, building supplies, junk yards, auto wrecking, fuel storage
H22: Pharmacy
H23: Private schools, colleges and daycare facilities
H24: Repair service shops (non-automotive)
H25: Restaurants (other than drive-in)
H26: Retirement homes, orphanages, group homes
H27: Service stations
H28: Storage Units
H29: Store, community shopping center (other than supermarkets and department stores)
H30: Supermarkets
H31: Theaters, Bowling alleys, skating rinks, pool halls, enclosed arenas, auditoriums
H32: Union halls, lodges, clubs, club houses
H33: Utility - other than GRU
H34: Warehouse, distribution centers, truck terminals
H35: Wholesale & manufacturing outlets, produce houses
